fUSD/lending_fUSD_20250629
["ID","MTS","AMOUNT","RATE_DAILY","PERIOD"]
[368482866,1751190655821,-490.0,0.00027671,3]
[368482868,1751190655830,-564.45,0.00027671,3]
[368482870,1751190655839,-2287.33,0.00027671,3]
[368482872,1751190655848,-490.0,0.00027671,3]
[368482874,1751190655857,-490.0,0.00027671,3]
[368482876,1751190655866,-7199.68,0.00027671,3]
[368482878,1751190655875,-1083.86,0.00027671,3]
[368482880,1751190655884,-1198.65,0.00027671,3]
[368482882,1751190655894,-2504.77,0.00027671,3]
[368482884,1751190655903,-490.0,0.00027671,3]
[368482886,1751190655912,-4926.93,0.00027671,3]
[368482887,1751190655921,-2111.85,0.00027671,3]
[368482889,1751190655931,-670.5,0.00027671,3]
[368482891,1751190655941,-9168.68,0.00027671,3]
[368482893,1751190655950,-1466.04,0.00027671,3]
[368482895,1751190655960,-995.99,0.00027671,3]
[368482897,1751190655969,-148479.19,0.00027671,3]
[368482899,1751190655979,-884.61,0.00027671,3]
[368482901,1751190655988,-1110.23,0.00027671,3]
[368482903,1751190655997,-490.0,0.00027671,3]
[368482905,1751190656007,-3927.92,0.00027671,3]
[368482907,1751190656016,-490.0,0.00027671,3]
[368482909,1751190656025,-1262.58,0.00027671,3]
[368482911,1751190656034,-490.0,0.00027671,3]
[368482913,1751190656044,-490.0,0.00027671,3]
[368482915,1751190656054,-490.0,0.00027671,3]
[368482917,1751190656063,-1550.57,0.00027671,3]
[368482919,1751190656071,-490.0,0.00027671,3]
[368482921,1751190656081,-4423.72,0.00027671,3]
[368482922,1751190656090,-490.0,0.00027671,3]
[368482923,1751190656100,-490.0,0.00027671,3]
[368482924,1751190656110,-799.02,0.00027671,3]
[368482925,1751190656118,-490.0,0.00027671,3]
[368482926,1751190656128,-2359.81,0.00027671,3]
[368482927,1751190656138,-1420.75,0.00027671,3]
[368482928,1751190656147,-490.0,0.00027671,3]
[368482929,1751190656158,-612.29,0.00027671,3]
[368482930,1751190656167,-490.0,0.00027671,3]
[368482931,1751190656176,-2220.09,0.00027671,3]
[368482932,1751190656186,-490.0,0.00027671,3]
[368482933,1751190656195,-490.0,0.00027671,3]
[368482934,1751190656205,-1116.8,0.00027671,3]
[368482935,1751190656214,-490.0,0.00027671,3]
[368482936,1751190656224,-495.37,0.00027671,3]
[368482937,1751190656234,-850.38,0.00027671,3]
[368482938,1751190656244,-1635.41,0.00027671,3]
[368482939,1751190656253,-1906.36,0.00027671,3]
[368482940,1751190656262,-2198.76,0.00027671,3]
[368482941,1751190656272,-490.0,0.00027671,3]
[368482942,1751190656281,-1730.15,0.00027671,3]
[368482943,1751190656291,-590.95,0.00027671,3]
[368482944,1751190656300,-490.0,0.00027671,3]
[368482945,1751190656309,-1477.82,0.00027671,3]
[368482946,1751190656318,-3000.74,0.00027671,3]
[368482947,1751190656333,-924.29,0.00027671,3]
[368482948,1751190656342,-818.08,0.00027671,3]
[368482949,1751190656351,-1537.71,0.00027671,3]
[368482950,1751190656361,-1894.35,0.00027671,3]
[368482951,1751190656371,-490.0,0.00027671,3]
[368482952,1751190656380,-1565.54,0.00027671,3]
[368482953,1751190656389,-490.0,0.00027671,3]
[368482954,1751190656399,-707.33,0.00027671,3]
[368482955,1751190656408,-490.0,0.00027671,3]
[368482956,1751190656417,-854.62,0.00027671,3]
[368482957,1751190656427,-1990.15,0.00027671,3]
[368482958,1751190656437,-490.0,0.00027671,3]
[368482959,1751190656446,-2120.63,0.00027671,3]
[368482960,1751190656456,-490.0,0.00027671,3]
[368482961,1751190656465,-490.0,0.00027671,3]
[368482962,1751190656474,-501.24,0.00027671,3]
[368482963,1751190656483,-490.0,0.00027671,3]
[368482964,1751190656492,-1303.39,0.00027671,3]
[368482965,1751190656501,-490.0,0.00027671,3]
[368482966,1751190656511,-490.0,0.00027671,3]
[368482967,1751190656520,-490.0,0.00027671,3]
[368482968,1751190656530,-490.0,0.00027671,3]
[368482969,1751190656539,-490.0,0.00027671,3]
[368482970,1751190656548,-2057.83,0.00027671,3]
[368482971,1751190656557,-1078.53,0.00027671,3]
[368482972,1751190656566,-1066.81,0.00027671,3]
[368482973,1751190656575,-829.05,0.00027671,3]
[368482974,1751190656584,-490.0,0.00027671,3]
[368482975,1751190656593,-2549.31,0.00027671,3]
[368482976,1751190656602,-490.0,0.00027671,3]
[368482977,1751190656611,-1514.01,0.00027671,3]
[368482978,1751190656620,-490.0,0.00027671,3]
[368482979,1751190656629,-709.69,0.00027671,3]
[368482980,1751190656639,-490.0,0.00027671,3]
[368482981,1751190656648,-490.0,0.00027671,3]
[368482982,1751190656658,-490.0,0.00027671,3]
[368482983,1751190656667,-1413.24,0.00027671,3]
[368482984,1751190656676,-1126.76,0.00027671,3]
[368482985,1751190656685,-499.7,0.00027671,3]
[368482986,1751190656694,-7138.85,0.00027671,3]
[368482987,1751190656703,-1903.95,0.00027671,3]
[368482988,1751190656712,-490.0,0.00027671,3]
[368482989,1751190656721,-490.0,0.00027671,3]
[368482990,1751190656730,-1687.9,0.00027671,3]
[368482991,1751190656739,-490.0,0.00027671,3]
[368482992,1751190656748,-1199.32,0.00027671,3]
[368482993,1751190656758,-605.34,0.00027671,3]
[368482994,1751190656768,-277.20859105,0.00027671,3]
[368482995,1751190656778,-490.0,0.00027671,3]
[368482996,1751190656786,-624.57,0.00027671,3]
[368482997,1751190656797,-1080.18,0.00027671,3]
[368482998,1751190656807,-490.0,0.00027671,3]
[368482999,1751190656816,-490.0,0.00027671,3]
[368483000,1751190656825,-1902.03,0.00027671,3]
[368483001,1751190656835,-685.5,0.00027671,3]
[368483002,1751190656845,-490.0,0.00027671,3]
[368483003,1751190656854,-985.04,0.00027671,3]
[368483004,1751190656863,-809.87,0.00027671,3]
[368483005,1751190656872,-2277.33,0.00027671,3]
[368483006,1751190656881,-3579.22,0.00027671,3]
[368483007,1751190656890,-1369.16,0.00027671,3]
[368483008,1751190656900,-490.0,0.00027671,3]
[368483009,1751190656910,-1202.94,0.00027671,3]
[368483010,1751190656919,-490.0,0.00027671,3]
[368483011,1751190656929,-1406.03,0.00027671,3]
[368483012,1751190656938,-490.0,0.00027671,3]
[368483013,1751190656948,-892.36,0.00027671,3]
[368483014,1751190656958,-7389.77,0.00027671,3]
[368483015,1751190656967,-490.0,0.00027671,3]
[368483016,1751190656977,-2322.41,0.00027671,3]
[368483017,1751190656987,-936.2,0.00027671,3]
[368483018,1751190656997,-11425.24,0.00027671,3]
[368483019,1751190657006,-490.0,0.00027671,3]
[368483020,1751190657016,-2363.6,0.00027671,3]
[368483021,1751190657026,-1344.12,0.00027671,3]
[368483022,1751190657036,-490.0,0.00027671,3]
[368483023,1751190657046,-490.0,0.00027671,3]
[368483024,1751190657055,-490.0,0.00027671,3]
[368483025,1751190657064,-490.0,0.00027671,3]
[368483026,1751190657073,-490.0,0.00027671,3]
[368483027,1751190657083,-1010.37,0.00027671,3]
[368483028,1751190657092,-3943.02,0.00027671,3]
[368483029,1751190657101,-719.55,0.00027671,3]
[368483030,1751190657110,-2127.37,0.00027671,3]
[368483031,1751190657119,-962.36,0.00027671,3]
[368483032,1751190657128,-490.0,0.00027671,3]
[368483033,1751190657137,-3378.38,0.00027671,3]
[368483034,1751190657147,-509.95,0.00027671,3]
[368483035,1751190657156,-1167.04,0.00027671,3]
[368483036,1751190657165,-2325.84,0.00027671,3]
[368483037,1751190657174,-1319.73,0.00027671,3]
[368483038,1751190657184,-2715.66,0.00027671,3]
[368483039,1751190657196,-490.0,0.00027671,3]
[368483040,1751190657206,-613.68,0.00027671,3]
[368483041,1751190657215,-490.0,0.00027671,3]
[368483042,1751190657225,-490.0,0.00027671,3]
[368483043,1751190657235,-490.0,0.00027671,3]
[368483044,1751190657245,-1294.86,0.00027671,3]
[368483045,1751190657255,-1043.95,0.00027671,3]
[368483046,1751190657265,-490.0,0.00027671,3]
[368483047,1751190657275,-1355.41,0.00027671,3]
[368483048,1751190657285,-2207.5,0.00027671,3]
[368483049,1751190657296,-4741.41,0.00027671,3]
[368483050,1751190657306,-490.0,0.00027671,3]
[368483051,1751190657315,-545.36,0.00027671,3]
[368483052,1751190657327,-490.0,0.00027671,3]
[368483053,1751190657337,-1588.45,0.00027671,3]
[368483054,1751190657346,-490.0,0.00027671,3]
[368483055,1751190657355,-826.61,0.00027671,3]
[368483056,1751190657364,-490.0,0.00027671,3]
[368483057,1751190657373,-490.0,0.00027671,3]
[368483058,1751190657383,-3228.0,0.00027671,3]
[368483059,1751190657392,-490.0,0.00027671,3]
[368483060,1751190657402,-490.0,0.00027671,3]
[368483061,1751190657412,-886.06,0.00027671,3]
[368483062,1751190657421,-490.0,0.00027671,3]
[368483063,1751190657431,-9205.97,0.00027671,3]
[368483064,1751190657440,-1424.96,0.00027671,3]
[368483065,1751190657450,-1170.72,0.00027671,3]
[368483066,1751190657459,-558.34327858,0.00027671,3]
[368483067,1751190657468,-490.0,0.00027671,3]
[368483068,1751190657477,-2306.21,0.00027671,3]
[368483069,1751190657487,-3412.3,0.00027671,3]
[368483070,1751190657496,-728.26,0.00027671,3]
[368483071,1751190657505,-1000.0,0.00027671,3]
[368483072,1751190657515,-1625.19,0.00027671,3]
[368483073,1751190657524,-490.0,0.00027671,3]
[368483074,1751190657533,-1125.2,0.00027671,3]
[368483075,1751190657542,-490.0,0.00027671,3]
[368483076,1751190657552,-1386.0,0.00027671,3]
[368483077,1751190657562,-736.63,0.00027671,3]
[368483078,1751190657571,-490.0,0.00027671,3]
[368483079,1751190657582,-490.0,0.00027671,3]
[368483080,1751190657591,-1073.8,0.00027671,3]
[368483081,1751190657600,-2006.57,0.00027671,3]
[368483083,1751190657609,-1530.28,0.00027671,3]
[368483085,1751190657618,-490.0,0.00027671,3]
[368483087,1751190657627,-2126.77,0.00027671,3]
[368483089,1751190657637,-490.0,0.00027671,3]
[368483091,1751190657646,-2091.51,0.00027671,3]
[368483093,1751190657654,-490.0,0.00027671,3]
[368483095,1751190657663,-490.0,0.00027671,3]
[368483097,1751190657672,-490.0,0.00027671,3]
[368483099,1751190657681,-1779.52,0.00027671,3]
[368483101,1751190657690,-490.0,0.00027671,3]
[368483103,1751190657699,-490.0,0.00027671,3]
[368483105,1751190657708,-490.0,0.00027671,3]
[368483107,1751190657717,-490.0,0.00027671,3]
[368483108,1751190657726,-1303.39,0.00027671,3]
[368483110,1751190657735,-490.0,0.00027671,3]
[368483112,1751190657743,-1673.45,0.00027671,3]
[368483114,1751190657752,-490.0,0.00027671,3]
[368483116,1751190657761,-4507.51,0.00027671,3]
[368483118,1751190657771,-776.8,0.00027671,3]
[368483120,1751190657780,-2452.49,0.00027671,3]
[368483122,1751190657789,-490.0,0.00027671,3]
[368483124,1751190657798,-490.0,0.00027671,3]
[368483126,1751190657807,-490.0,0.00027671,3]
[368483128,1751190657817,-2000.1,0.00027671,3]
[368483130,1751190657827,-3480.9,0.00027671,3]
[368483132,1751190657836,-490.0,0.00027671,3]
[368483134,1751190657846,-1935.08,0.00027671,3]
[368483136,1751190657855,-1632.66,0.00027671,3]
[368483138,1751190657864,-490.0,0.00027671,3]
[368483140,1751190657873,-1569.37,0.00027671,3]
[368483141,1751190657882,-2530.56,0.00027671,3]
[368483142,1751190657891,-490.0,0.00027671,3]
[368483143,1751190657900,-490.0,0.00027671,3]
[368483144,1751190657910,-490.0,0.00027671,3]
[368483145,1751190657920,-1489.85,0.00027671,3]
[368483146,1751190657930,-490.0,0.00027671,3]
[368483147,1751190657940,-2419.87,0.00027671,3]
[368483148,1751190657950,-1193.32,0.00027671,3]
[368483149,1751190657959,-490.0,0.00027671,3]
[368483150,1751190657969,-588.25,0.00027671,3]
[368483151,1751190657979,-1993.35,0.00027671,3]
[368483152,1751190657988,-2069.08,0.00027671,3]
[368483153,1751190657997,-3522.67,0.00027671,3]
[368483154,1751190658007,-1690.76,0.00027671,3]
[368483155,1751190658016,-2018.73,0.00027671,3]
[368483156,1751190658025,-490.0,0.00027671,3]
[368483157,1751190658035,-2243.02,0.00027671,3]
[368483158,1751190658043,-490.0,0.00027671,3]
[368483159,1751190658053,-490.0,0.00027671,3]
[368483160,1751190658062,-490.0,0.00027671,3]
[368483161,1751190658071,-1621.16,0.00027671,3]
[368483162,1751190658081,-2803.72,0.00027671,3]
[368483163,1751190658090,-490.0,0.00027671,3]
[368483164,1751190658100,-490.0,0.00027671,3]
[368483165,1751190658110,-490.0,0.00027671,3]
[368483166,1751190658120,-490.0,0.00027671,3]
[368483167,1751190658129,-490.0,0.00027671,3]
[368483168,1751190658139,-490.0,0.00027671,3]
[368483169,1751190658148,-490.0,0.00027671,3]
[368483170,1751190658158,-490.0,0.00027671,3]
[368483171,1751190658167,-490.0,0.00027671,3]
[368483172,1751190658176,-490.0,0.00027671,3]
[368483173,1751190658185,-490.0,0.00027671,3]
[368483174,1751190658195,-490.0,0.00027671,3]
[368483175,1751190658204,-1156.58,0.00027671,3]
[368483176,1751190658213,-490.0,0.00027671,3]
[368483177,1751190658223,-697.23,0.00027671,3]
[368483178,1751190658232,-490.0,0.00027671,3]
[368483179,1751190658241,-2344.83,0.00027671,3]
[368483180,1751190658250,-896.46,0.00027671,3]
[368483181,1751190658260,-2317.49,0.00027671,3]
[368483182,1751190658269,-1455.99,0.00027671,3]
[368483183,1751190658278,-4069.2,0.00027671,3]
[368483184,1751190658287,-490.0,0.00027671,3]
[368483185,1751190658296,-1697.89,0.00027671,3]
[368483186,1751190658305,-490.0,0.00027671,3]
[368483187,1751190658314,-490.0,0.00027671,3]
[368483188,1751190658325,-2847.6,0.00027671,3]
[368483189,1751190658335,-490.0,0.00027671,3]
[368483190,1751190658345,-1196.0,0.00027671,3]
[368483191,1751190658353,-499.82,0.00027671,3]
[368483192,1751190658362,-490.0,0.00027671,3]
[368483193,1751190658373,-1620.63,0.00027671,3]
[368483194,1751190658382,-24643.72,0.00027671,3]
[368483195,1751190658391,-498.07,0.00027671,3]
[368483196,1751190658401,-412.01119805,0.00027671,3]
[368483197,1751190658410,-3762.98,0.00027671,3]
[368483198,1751190658420,-490.0,0.00027671,3]
[368483199,1751190658430,-1069.72,0.00027671,3]
[368483200,1751190658439,-725.1,0.00027671,3]
[368483201,1751190658448,-4782.64,0.00027671,3]
[368483202,1751190658457,-490.0,0.00027671,3]
[368483203,1751190658466,-1100.83,0.00027671,3]
[368483204,1751190658475,-1824.13,0.00027671,3]
[368483205,1751190658484,-2504.1,0.00027671,3]
[368483206,1751190658493,-1607.63,0.00027671,3]
[368483207,1751190658503,-490.0,0.00027671,3]
[368483208,1751190658513,-490.0,0.00027671,3]
[368483209,1751190658522,-1132.25,0.00027671,3]
[368483210,1751190658531,-3607.16,0.00027671,3]
[368483211,1751190658540,-536.83486095,0.00027671,3]
[368483212,1751190658549,-11678.75,0.00027671,3]
[368483213,1751190658559,-490.0,0.00027671,3]
[368483214,1751190658568,-674.39,0.00027671,3]
[368483215,1751190658577,-520.06334299,0.00027671,3]
[368483216,1751190658586,-2388.21,0.00027671,3]
[368483217,1751190658595,-490.0,0.00027671,3]
[368483218,1751190658605,-632.01,0.00027671,3]
[368483219,1751190658614,-490.0,0.00027671,3]
[368483220,1751190658623,-490.0,0.00027671,3]
[368483221,1751190658633,-490.0,0.00027671,3]
[368483222,1751190658642,-3749.55,0.00027671,3]
[368483223,1751190658651,-2478.96,0.00027671,3]
[368483224,1751190658661,-490.0,0.00027671,3]
[368483225,1751190658670,-536.71,0.00027671,3]
[368483226,1751190658679,-1798.53,0.00027671,3]
[368483227,1751190658689,-1629.68,0.00027671,3]
[368483228,1751190658699,-3221.5,0.00027671,3]
[368483229,1751190658709,-490.0,0.00027671,3]
[368483230,1751190658719,-490.0,0.00027671,3]
[368483231,1751190658729,-490.0,0.00027671,3]
[368483232,1751190658738,-2263.99,0.00027671,3]
[368483233,1751190658748,-1535.71,0.00027671,3]
[368483234,1751190658758,-548.24,0.00027671,3]
[368483235,1751190658768,-348.77012747,0.00027671,3]
[368483236,1751190658777,-1677.32,0.00027671,3]
[368483237,1751190658789,-490.0,0.00027671,3]
[368483238,1751190658799,-1322.58,0.00027671,3]
[368483239,1751190658808,-6718.76,0.00027671,3]
[368483240,1751190658818,-490.0,0.00027671,3]
[368483241,1751190658829,-553.18,0.00027671,3]
[368483242,1751190658839,-485.08786695,0.00027671,3]
[368483243,1751190658848,-18559.3,0.00027671,3]
[368483244,1751190658857,-857.93,0.00027671,3]
[368483245,1751190658866,-490.0,0.00027671,3]
[368483246,1751190658875,-987.81,0.00027671,3]
[368483247,1751190658885,-1263.2,0.00027671,3]
[368483248,1751190658894,-490.0,0.00027671,3]
[368483249,1751190658904,-2586.37,0.00027671,3]
[368483250,1751190658914,-1943.16,0.00027671,3]
[368483251,1751190658923,-490.0,0.00027671,3]
[368483252,1751190658933,-3862.63,0.00027671,3]
[368483253,1751190658942,-698.11,0.00027671,3]
[368483254,1751190658952,-826.74,0.00027671,3]
[368483255,1751190658963,-490.0,0.00027671,3]
[368483256,1751190658973,-490.0,0.00027671,3]
[368483257,1751190658983,-490.0,0.00027671,3]
[368483258,1751190658992,-4122.27,0.00027671,3]
[368483259,1751190659002,-490.0,0.00027671,3]
[368483260,1751190659011,-490.0,0.00027671,3]
[368483261,1751190659021,-490.0,0.00027671,3]
[368483262,1751190659030,-4529.09,0.00027671,3]
[368483263,1751190659041,-490.0,0.00027671,3]
[368483264,1751190659050,-490.0,0.00027671,3]
[368483265,1751190659059,-490.0,0.00027671,3]
[368483266,1751190659068,-1385.92,0.00027671,3]
[368483267,1751190659077,-490.0,0.00027671,3]
[368483268,1751190659087,-1552.69,0.00027671,3]
[368483269,1751190659096,-2723.89,0.00027671,3]
[368483270,1751190659106,-520.76936014,0.00027671,3]
[368483271,1751190659115,-620.43,0.00027671,3]
[368483272,1751190659124,-490.0,0.00027671,3]
[368483273,1751190659133,-5320.1,0.00027671,3]
[368483274,1751190659142,-2896.25,0.00027671,3]
[368483275,1751190659152,-1874.39,0.00027671,3]
[368483276,1751190659162,-1307.14,0.00027671,3]
[368483277,1751190659171,-919.31,0.00027671,3]
[368483278,1751190659181,-2347.57,0.00027671,3]
[368483279,1751190659190,-2024.74,0.00027671,3]
[368483280,1751190659201,-414.56909385,0.00027671,3]
[368483281,1751190659210,-490.0,0.00027671,3]
[368483282,1751190659220,-5682.59,0.00027671,3]
[368483283,1751190659230,-490.0,0.00027671,3]
[368483284,1751190659239,-490.0,0.00027671,3]
[368483285,1751190659249,-490.0,0.00027671,3]
[368483286,1751190659260,-490.0,0.00027671,3]
[368483287,1751190659269,-2104.31,0.00027671,3]
[368483288,1751190659278,-490.0,0.00027671,3]
[368483289,1751190659288,-490.0,0.00027671,3]
[368483290,1751190659297,-626.13,0.00027671,3]
[368483291,1751190659307,-1968.64,0.00027671,3]
[368483292,1751190659317,-490.0,0.00027671,3]
[368483293,1751190659331,-2133.2,0.00027671,3]
[368483294,1751190659342,-490.0,0.00027671,3]
[368483295,1751190659352,-490.0,0.00027671,3]
[368483296,1751190659363,-1770.11,0.00027671,3]
[368483297,1751190659373,-490.0,0.00027671,3]
[368483298,1751190659383,-1764.06,0.00027671,3]
[368483299,1751190659392,-490.0,0.00027671,3]
[368483300,1751190659401,-700.52,0.00027671,3]
[368483301,1751190659411,-490.0,0.00027671,3]
[368483302,1751190659420,-1730.13,0.00027671,3]
[368483303,1751190659430,-2165.68,0.00027671,3]
[368483304,1751190659438,-513.72,0.00027671,3]
[368483305,1751190659447,-490.0,0.00027671,3]
[368483306,1751190659457,-883.4,0.00027671,3]
[368483307,1751190659466,-1926.75,0.00027671,3]
[368483308,1751190659475,-3866.16,0.00027671,3]
[368483309,1751190659485,-5921.12,0.00027671,3]
[368483310,1751190659494,-490.0,0.00027671,3]
[368483311,1751190659504,-2043.04,0.00027671,3]
[368483312,1751190659514,-490.0,0.00027671,3]
[368483313,1751190659523,-2141.99,0.00027671,3]
[368483314,1751190659532,-490.0,0.00027671,3]
[368483315,1751190659541,-631.01,0.00027671,3]
[368483316,1751190659550,-855.58,0.00027671,3]
[368483317,1751190659560,-3241.41,0.00027671,3]
[368483318,1751190659569,-1625.9,0.00027671,3]
[368483319,1751190659578,-696.89,0.00027671,3]
[368483320,1751190659587,-490.0,0.00027671,3]
[368483321,1751190659596,-2087.25,0.00027671,3]
[368483322,1751190659606,-4543.11,0.00027671,3]
[368483323,1751190659615,-1891.34,0.00027671,3]
[368483324,1751190659624,-569.82,0.00027671,3]
[368483325,1751190659635,-1931.12,0.00027671,3]
[368483326,1751190659646,-490.0,0.00027671,3]
[368483327,1751190659655,-490.0,0.00027671,3]
[368483328,1751190659665,-490.0,0.00027671,3]
[368483329,1751190659675,-490.0,0.00027671,3]
[368483330,1751190659684,-490.0,0.00027671,2]
[368483331,1751190659693,-490.0,0.00027671,3]
[368483332,1751190659703,-490.0,0.00027671,3]
[368483333,1751190659713,-1948.57,0.00027671,3]
[368483334,1751190659723,-1323.16,0.00027671,3]
[368483335,1751190659732,-6890.33,0.00027671,3]
[368483336,1751190659742,-971.22,0.00027671,3]
[368483337,1751190659752,-490.0,0.00027671,3]
[368483338,1751190659761,-1740.09,0.00027671,3]
[368483339,1751190659771,-961.28,0.00027671,3]
[368483340,1751190659781,-1509.17,0.00027671,3]
[368483341,1751190659790,-2526.68,0.00027671,3]
[368483342,1751190659799,-490.0,0.00027671,3]
[368483343,1751190659810,-1923.32,0.00027671,3]
[368483344,1751190659819,-830.46,0.00027671,3]
[368483345,1751190659828,-490.0,0.00027671,3]
[368483346,1751190659838,-1194.57,0.00027671,3]
[368483347,1751190659847,-2090.18,0.00027671,3]
[368483348,1751190659856,-490.0,0.00027671,3]
[368483349,1751190659865,-1213.82,0.00027671,3]
[368483350,1751190659875,-2063.76,0.00027671,3]
[368483351,1751190659884,-490.0,0.00027671,3]
[368483352,1751190659893,-500.0,0.00027673,5]
[368483353,1751190659903,-500.0,0.00027673,5]
[368483354,1751190659914,-500.0,0.00027673,5]
[368483355,1751190659924,-500.0,0.00027673,5]
[368483356,1751190659933,-159.72974989,0.00027673,2]
[368483357,1751190659943,-159.72974989,0.00027673,2]
[368483358,1751190659953,-502.91280973,0.00027673,5]
[368483359,1751190659963,-399.68627834,0.00027673,5]
[368483360,1751190659973,-500.0,0.00027673,5]
[368483361,1751190659982,-163.52092988,0.00027673,5]
[368483362,1751190659992,-531.74152762,0.00027673,5]
[368483363,1751190660004,-178.27246136,0.00027673,5]
[368483364,1751190660014,-500.0,0.00027673,5]
[368483365,1751190660024,-273.34954719,0.00027673,5]
[368483366,1751190660035,-513.90456754,0.00027673,5]
[368483367,1751190660045,-500.0,0.00027673,5]
[368483368,1751190660055,-157.2498453,0.00027673,5]
[368483369,1751190660065,-333.88821153,0.00027673,5]
[368483370,1751190660074,-500.0,0.00027673,5]
[368483371,1751190660084,-500.0,0.00027673,5]
[368483372,1751190660093,-500.0,0.00027673,5]
[368483373,1751190660103,-500.0,0.00027673,5]
[368483374,1751190660112,-500.0,0.00027673,5]
[368483375,1751190660122,-154.03844298,0.00027673,5]
[368483376,1751190660132,-500.0,0.00027673,5]
[368483377,1751190660142,-500.0,0.00027673,5]
[368483378,1751190660151,-500.0,0.00027673,5]
[368483379,1751190660163,-500.0,0.00027673,5]
[368483380,1751190660173,-500.0,0.00027673,5]
[368483381,1751190660183,-500.0,0.00027673,5]
[368483382,1751190660193,-500.0,0.00027673,5]
[368483383,1751190660203,-159.72974989,0.00027673,2]
[368483384,1751190660215,-500.0,0.00027673,5]
[368483385,1751190660225,-500.0,0.00027673,5]
[368483386,1751190660235,-945.15094402,0.00027678,2]
[368483387,1751190660247,-346.22404956,0.00027679,2]
[368483388,1751190660259,-905.15094402,0.00027691,2]
[368483389,1751190660269,-200.0,0.00027695,2]
[368483390,1751190660279,-200.0,0.000277,2]
[368483391,1751190660289,-500.0,0.000277,5]
[368483392,1751190660299,-10200.0,0.000277,10]
[368483393,1751190660308,-200.0,0.000277,2]
[368483394,1751190660318,-905.15094402,0.00027702,2]
[368483395,1751190660331,-291.19606475,0.00027715,2]
[368483396,1751190660341,-291.19606475,0.00027719,2]
[368483397,1751190660352,-200.0,0.00027723,2]
[368483398,1751190660362,-2043.46130184,0.00027728,17]
[368483399,1751190660373,-945.15094402,0.00027735,2]
[368483400,1751190660383,-945.15094402,0.00027746,2]
[368483401,1751190660393,-15392.0623278,0.00027754,2]
[368483402,1751190660403,-173.905166,0.00027754,7]
[368483403,1751190660416,-151.0,0.00027754,7]
[368483404,1751190660426,-200.0,0.00027765,2]
[368483405,1751190660436,-291.19606475,0.00027773,2]
[368483406,1751190660447,-371.85557959,0.00027784,2]
[368483407,1751190660457,-500.0,0.00027799,3]
[368483408,1751190660467,-200.0,0.00027799,2]
[368483409,1751190660477,-303.98420713,0.00027799,2]
[368483410,1751190660486,-346.22404956,0.00027799,2]
[368483411,1751190660496,-12800.0,0.000278,10]
[368483412,1751190660507,-200.0,0.00027807,2]
[368483413,1751190660517,-346.22404956,0.00027808,2]
[368483414,1751190660527,-766.0,0.00027808,5]
[368483415,1751190660536,-200.0,0.00027828,2]
[368483416,1751190660546,-200.0,0.00027828,2]
[368483417,1751190660556,-250.0,0.0002783,2]
[368483418,1751190660566,-905.15094402,0.00027836,2]
[368483419,1751190660576,-291.19606475,0.00027836,2]
[368483420,1751190660585,-346.22404956,0.00027837,2]
[368483421,1751190660595,-346.22404956,0.00027838,2]